[Event "*** Titled Tuesday Blitz"]
[Site "Chess.com"]
[Date "2019.01.01"]
[Round "4"]
[White "aquaticpineapples"]
[Black "tgpgoat"]
[Result "1-0"]
[WhiteElo "2102"]
[BlackElo "1985"]
[TimeControl "180+2"]
[EndTime "13:48:14 PST"]
[Termination "aquaticpineapples won by resignation"]

1. d4 {[%clk 0:03:01.9]} 1... Nf6 {[%clk 0:02:56.1]} 2. Nf3 {[%clk 0:03:02.1]}
2... d5 {[%clk 0:02:56.5]} 3. e3 {[%clk 0:03:02.7]} 3... c6 {[%clk 0:02:56.6]}
4. b3 {[%clk 0:03:00.5]} 4... e6 {[%clk 0:02:57.8]} 5. Bb2 {[%clk 0:03:00.5]}
5... Bd6 {[%clk 0:02:58.6]} 6. Bd3 {[%clk 0:03:00.6]} 6... Nbd7 {[%clk
0:02:59.7]} 7. Ne5 {[%clk 0:03:00.6]} 7... Qc7 {[%clk 0:02:54.2]} 8. f4 {[%clk
0:03:00]} 8... Ne4 {[%clk 0:02:54.7]} 9. Nd2 {[%clk 0:02:57.3]} 9... f5 {[%clk
0:02:55.3]} 10. Qh5+ {[%clk 0:02:55.1]} 10... Kd8 {[%clk 0:02:42.5]} 11. Nf7+
{[%clk 0:02:54.4]} 11... Ke7 {[%clk 0:02:43.1]} 12. Nxh8 {[%clk 0:02:54.5]}
12... Ndf6 {[%clk 0:02:42.3]} 13. Qf7+ {[%clk 0:02:54.1]} 13... Kd8 {[%clk
0:02:42.5]} 14. Qxc7+ {[%clk 0:02:52.8]} 14... Bxc7 {[%clk 0:02:40.8]} 1-0

[Event "*** Titled Tuesday Blitz"]
[Site "Chess.com"]
[Date "2019.01.01"]
[Round "4"]
[White "PrinceCharming92"]
[Black "theblitzchamp"]
[Result "1-0"]
[WhiteElo "2475"]
[BlackElo "2610"]
[TimeControl "180+2"]
[EndTime "13:50:28 PST"]
[Termination "PrinceCharming92 won by checkmate"]

1. e4 {[%clk 0:03:01.9]} 1... e5 {[%clk 0:03:00.5]} 2. Nf3 {[%clk 0:03:02.6]}
2... Nc6 {[%clk 0:03:00.2]} 3. Bc4 {[%clk 0:03:03.1]} 3... Nf6 {[%clk
0:03:01.5]} 4. d3 {[%clk 0:03:02.5]} 4... Bc5 {[%clk 0:03:02.4]} 5. O-O {[%clk
0:03:03.1]} 5... O-O {[%clk 0:03:03.4]} 6. c3 {[%clk 0:03:04.5]} 6... d6 {[%clk
0:03:04.6]} 7. Nbd2 {[%clk 0:03:03.6]} 7... Be6 {[%clk 0:03:05.3]} 8. Bb5 {[%clk
0:03:04.7]} 8... Ne7 {[%clk 0:03:04.7]} 9. Re1 {[%clk 0:03:05.2]} 9... c6 {[%clk
0:03:06.1]} 10. Ba4 {[%clk 0:03:06]} 10... b5 {[%clk 0:03:06.7]} 11. Bc2 {[%clk
0:03:06.8]} 11... Ng6 {[%clk 0:03:07.9]} 12. Nf1 {[%clk 0:03:07.9]} 12... Ng4
{[%clk 0:03:08.9]} 13. d4 {[%clk 0:03:08.1]} 13... Bb6 {[%clk 0:03:09.2]} 14. h3
{[%clk 0:03:08.1]} 14... Nf6 {[%clk 0:03:10]} 15. Ng3 {[%clk 0:03:06.8]} 15...
exd4 {[%clk 0:03:09.3]} 16. cxd4 {[%clk 0:03:08.7]} 16... d5 {[%clk 0:03:08.6]}
17. e5 {[%clk 0:03:06.5]} 17... Nd7 {[%clk 0:03:09.9]} 18. Bg5 {[%clk
0:03:05.5]} 18... Qc7 {[%clk 0:03:10.3]} 19. Rc1 {[%clk 0:03:00.9]} 19... Rae8
{[%clk 0:03:11.2]} 20. Qd2 {[%clk 0:02:56.1]} 20... f6 {[%clk 0:03:12.1]} 21.
exf6 {[%clk 0:02:51.2]} 21... Nxf6 {[%clk 0:03:13.2]} 22. Bxg6 {[%clk
0:02:48.2]} 22... hxg6 {[%clk 0:03:13.9]} 23. Ne5 {[%clk 0:02:48.8]} 23... Bd7
{[%clk 0:03:02.7]} 24. Nxg6 {[%clk 0:02:39.8]} 24... Rxe1+ {[%clk 0:03:00.8]}
25. Rxe1 {[%clk 0:02:38.5]} 25... Re8 {[%clk 0:03:02.2]} 26. Bxf6 {[%clk
0:01:49.2]} 26... gxf6 {[%clk 0:03:01.9]} 27. Ne7+ {[%clk 0:01:35.4]} 27... Kf7
{[%clk 0:03:01.1]} 28. Qh6 {[%clk 0:01:34]} 28... Be6 {[%clk 0:02:57.8]} 29.
Qh7+ {[%clk 0:01:29.4]} 29... Kf8 {[%clk 0:02:58.5]} 30. Ng6# {[%clk 0:01:28.5]}
1-0

[Event "*** Titled Tuesday Blitz"]
[Site "Chess.com"]
[Date "2019.01.01"]
[Round "4"]
[White "afgano29"]
[Black "albi1999"]
[Result "1-0"]
[WhiteElo "2646"]
[BlackElo "2468"]
[TimeControl "180+2"]
[EndTime "13:51:41 PST"]
[Termination "afgano29 won by resignation"]

1. d4 {[%clk 0:03:01.9]} 1... d5 {[%clk 0:02:56.6]} 2. c4 {[%clk 0:03:00.5]}
2... e6 {[%clk 0:02:56.2]} 3. Nf3 {[%clk 0:03:00.8]} 3... Nf6 {[%clk 0:02:56.7]}
4. g3 {[%clk 0:03:01.1]} 4... Bb4+ {[%clk 0:02:55.2]} 5. Bd2 {[%clk 0:03:01.4]}
5... Bd6 {[%clk 0:02:52.2]} 6. Bg2 {[%clk 0:02:59.6]} 6... c6 {[%clk 0:02:52.6]}
7. O-O {[%clk 0:02:59.1]} 7... Nbd7 {[%clk 0:02:53.6]} 8. Nc3 {[%clk 0:03:00.2]}
8... O-O {[%clk 0:02:51.5]} 9. e4 {[%clk 0:03:01.2]} 9... Nxe4 {[%clk
0:02:50.9]} 10. Nxe4 {[%clk 0:03:01.5]} 10... dxe4 {[%clk 0:02:52.8]} 11. Ng5
{[%clk 0:03:02.7]} 11... Be7 {[%clk 0:02:54.4]} 12. Nxe4 {[%clk 0:03:03.2]}
12... f5 {[%clk 0:02:56]} 13. Nc3 {[%clk 0:03:02.8]} 13... e5 {[%clk 0:02:57.6]}
14. d5 {[%clk 0:02:44.3]} 14... cxd5 {[%clk 0:02:46.5]} 15. Nxd5 {[%clk
0:02:43.1]} 15... Bc5 {[%clk 0:02:44.8]} 16. Bc3 {[%clk 0:02:42.3]} 16... Re8
{[%clk 0:02:42.6]} 17. b4 {[%clk 0:02:42.5]} 17... Bf8 {[%clk 0:02:40.5]} 18. c5
{[%clk 0:02:42.9]} 18... Nf6 {[%clk 0:02:36.9]} 19. Re1 {[%clk 0:02:41.9]} 19...
Be6 {[%clk 0:02:22.2]} 20. Nxf6+ {[%clk 0:02:41.1]} 20... gxf6 {[%clk
0:02:24.1]} 21. Bxb7 {[%clk 0:02:40.8]} 21... Rb8 {[%clk 0:02:19.8]} 22. Qxd8
{[%clk 0:02:29.1]} 22... Rexd8 {[%clk 0:02:19.7]} 23. c6 {[%clk 0:02:20.1]}
23... Bd6 {[%clk 0:02:20.3]} 24. b5 {[%clk 0:02:17.1]} 24... Bc7 {[%clk
0:02:21.2]} 25. a4 {[%clk 0:02:17.7]} 25... Rd3 {[%clk 0:02:14.4]} 26. Rec1
{[%clk 0:02:17.4]} 26... Rbd8 {[%clk 0:02:09]} 27. a5 {[%clk 0:02:16.4]} 27...
Bc4 {[%clk 0:02:06.8]} 28. Rab1 {[%clk 0:02:16.6]} 28... Ba2 {[%clk 0:01:54.4]}
29. b6 {[%clk 0:02:15.5]} 29... axb6 {[%clk 0:01:53.4]} 30. axb6 {[%clk
0:02:16.2]} 30... Bxb6 {[%clk 0:01:35.8]} 31. Rxb6 {[%clk 0:02:16.4]} 31... Rd1+
{[%clk 0:01:37.7]} 32. Rxd1 {[%clk 0:02:17.2]} 32... Rxd1+ {[%clk 0:01:39.6]}
33. Kg2 {[%clk 0:02:18.6]} 33... Bd5+ {[%clk 0:01:41.5]} 34. Kh3 {[%clk
0:02:19.7]} 34... Bf3 {[%clk 0:01:38.8]} 35. c7 {[%clk 0:02:18.8]} 35... Bg4+
{[%clk 0:01:39.8]} 36. Kh4 {[%clk 0:02:19.1]} 36... Rh1 {[%clk 0:01:29.9]} 37.
c8=Q+ {[%clk 0:02:21]} 37... Kg7 {[%clk 0:01:29.6]} 38. Bxh1 {[%clk 0:02:21.1]}
1-0

[Event "*** Titled Tuesday Blitz"]
[Site "Chess.com"]
[Date "2019.01.01"]
[Round "4"]
[White "Saitama_Hero"]
[Black "Bad4life"]
[Result "0-1"]
[WhiteElo "2381"]
[BlackElo "2338"]
[TimeControl "180+2"]
[EndTime "13:51:46 PST"]
[Termination "Bad4life won by checkmate"]

1. d4 {[%clk 0:03:01.9]} 1... Nf6 {[%clk 0:03:00.5]} 2. Nf3 {[%clk 0:03:00.6]}
2... g6 {[%clk 0:03:00.7]} 3. g3 {[%clk 0:03:02.5]} 3... Bg7 {[%clk 0:03:02.2]}
4. Bg2 {[%clk 0:03:03.2]} 4... O-O {[%clk 0:03:04.1]} 5. O-O {[%clk 0:03:03.7]}
5... d6 {[%clk 0:03:06]} 6. b3 {[%clk 0:03:04.5]} 6... Nbd7 {[%clk 0:02:59.9]}
7. Bb2 {[%clk 0:03:05.8]} 7... c6 {[%clk 0:03:01.2]} 8. c4 {[%clk 0:03:05]} 8...
Re8 {[%clk 0:03:02.4]} 9. d5 {[%clk 0:02:57.6]} 9... Nc5 {[%clk 0:03:01.8]} 10.
Nd4 {[%clk 0:02:56.5]} 10... cxd5 {[%clk 0:03:00.3]} 11. cxd5 {[%clk 0:02:58.4]}
11... Bf5 {[%clk 0:02:57.5]} 12. Nc3 {[%clk 0:02:56.9]} 12... Qd7 {[%clk
0:02:56.8]} 13. Re1 {[%clk 0:02:56.1]} 13... Bh3 {[%clk 0:02:57.8]} 14. Bh1
{[%clk 0:02:56.5]} 14... Rac8 {[%clk 0:02:57.1]} 15. Qd2 {[%clk 0:02:47.3]}
15... h5 {[%clk 0:02:50.1]} 16. e4 {[%clk 0:02:25.2]} 16... Ng4 {[%clk
0:02:49.6]} 17. Rad1 {[%clk 0:02:23]} 17... a5 {[%clk 0:02:37.1]} 18. f4 {[%clk
0:02:16.8]} 18... Na6 {[%clk 0:02:27.6]} 19. Bf3 {[%clk 0:02:12.8]} 19... Qc7
{[%clk 0:02:23.3]} 20. Na4 {[%clk 0:01:54.9]} 20... Nb4 {[%clk 0:01:55.1]} 21.
a3 {[%clk 0:01:45.9]} 21... Nc2 {[%clk 0:01:56.1]} 22. Rc1 {[%clk 0:01:30.4]}
22... Nxe1 {[%clk 0:01:56.1]} 23. Bxg4 {[%clk 0:01:15.7]} 23... Qxc1 {[%clk
0:01:51.5]} 24. Bxc1 {[%clk 0:01:14.2]} 24... Rxc1 {[%clk 0:01:51.3]} 25. Qxc1
{[%clk 0:01:08.2]} 25... Bxd4+ {[%clk 0:01:52.1]} 26. Kh1 {[%clk 0:01:03]} 26...
Bg2# {[%clk 0:01:53]} 0-1

[Event "*** Titled Tuesday Blitz"]
[Site "Chess.com"]
[Date "2019.01.01"]
[Round "4"]
[White "essequamvideris"]
[Black "Kawhi_Leonard2"]
[Result "1-0"]
[WhiteElo "2374"]
[BlackElo "2258"]
[TimeControl "180+2"]
[EndTime "13:51:57 PST"]
[Termination "essequamvideris won by resignation"]

1. Nf3 {[%clk 0:03:01.9]} 1... Nf6 {[%clk 0:03:00]} 2. g3 {[%clk 0:03:03.4]}
2... e6 {[%clk 0:03:00.1]} 3. Bg2 {[%clk 0:03:05.3]} 3... d5 {[%clk 0:03:00.7]}
4. O-O {[%clk 0:03:07.2]} 4... Be7 {[%clk 0:03:01.5]} 5. c4 {[%clk 0:03:08.6]}
5... O-O {[%clk 0:03:02.3]} 6. cxd5 {[%clk 0:03:10.4]} 6... exd5 {[%clk
0:03:02.9]} 7. d4 {[%clk 0:03:12.3]} 7... Bf5 {[%clk 0:03:02.7]} 8. Nc3 {[%clk
0:03:14.2]} 8... c6 {[%clk 0:03:03.3]} 9. Bf4 {[%clk 0:03:14.8]} 9... h6 {[%clk
0:03:03.6]} 10. Rc1 {[%clk 0:03:12.9]} 10... Na6 {[%clk 0:02:49.4]} 11. Ne5
{[%clk 0:02:43.6]} 11... Bd6 {[%clk 0:02:42.2]} 12. f3 {[%clk 0:02:42.1]} 12...
Re8 {[%clk 0:02:32.4]} 13. e4 {[%clk 0:02:40.4]} 13... Bh7 {[%clk 0:02:17.9]}
14. Qb3 {[%clk 0:02:37.2]} 14... Qe7 {[%clk 0:01:32.8]} 15. exd5 {[%clk
0:02:26.3]} 15... Nxd5 {[%clk 0:01:31.4]} 16. Nxd5 {[%clk 0:02:25.6]} 16... cxd5
{[%clk 0:01:32.6]} 17. a3 {[%clk 0:02:24.7]} 17... Rad8 {[%clk 0:01:14.9]} 18.
Rfe1 {[%clk 0:02:22.4]} 18... Bxe5 {[%clk 0:00:44]} 19. Rxe5 {[%clk 0:02:17.5]}
19... Qd7 {[%clk 0:00:44.9]} 20. Rxe8+ {[%clk 0:02:11.2]} 20... Rxe8 {[%clk
0:00:45.4]} 21. Bf1 {[%clk 0:02:12.2]} 21... g5 {[%clk 0:00:36.5]} 22. Bb5
{[%clk 0:02:09.3]} 22... Qe6 {[%clk 0:00:25.5]} 23. Bxe8 {[%clk 0:02:10]} 23...
gxf4 {[%clk 0:00:26.8]} 24. Bb5 {[%clk 0:02:10]} 1-0

[Event "*** Titled Tuesday Blitz"]
[Site "Chess.com"]
[Date "2019.01.01"]
[Round "4"]
[White "NCchamp"]
[Black "TheoSlade"]
[Result "1-0"]
[WhiteElo "2194"]
[BlackElo "2079"]
[TimeControl "180+2"]
[EndTime "13:52:01 PST"]
[Termination "NCchamp won by resignation"]

1. c4 {[%clk 0:03:01.9]} 1... e6 {[%clk 0:03:00.4]} 2. Nc3 {[%clk 0:03:03]} 2...
Nf6 {[%clk 0:03:00.8]} 3. e4 {[%clk 0:03:03.7]} 3... d5 {[%clk 0:03:02]} 4. e5
{[%clk 0:03:04.6]} 4... d4 {[%clk 0:03:02.2]} 5. exf6 {[%clk 0:03:05.5]} 5...
dxc3 {[%clk 0:03:03.3]} 6. dxc3 {[%clk 0:03:06.6]} 6... Qxd1+ {[%clk 0:02:56.8]}
7. Kxd1 {[%clk 0:03:07.4]} 7... gxf6 {[%clk 0:02:58]} 8. Bd3 {[%clk 0:03:01.8]}
8... b6 {[%clk 0:02:55.4]} 9. Be4 {[%clk 0:02:59.4]} 9... c6 {[%clk 0:02:55.9]}
10. Ne2 {[%clk 0:02:56.5]} 10... Bb7 {[%clk 0:02:52.5]} 11. Nd4 {[%clk
0:02:50.6]} 11... f5 {[%clk 0:02:52.5]} 12. Bf3 {[%clk 0:02:50.7]} 12... Bg7
{[%clk 0:02:47.8]} 13. Kc2 {[%clk 0:02:44]} 13... O-O {[%clk 0:02:43.2]} 14. Bg5
{[%clk 0:02:10.7]} 14... h6 {[%clk 0:02:38]} 15. Bh4 {[%clk 0:02:03]} 15... Rc8
{[%clk 0:02:12.8]} 16. b4 {[%clk 0:01:50.2]} 16... Na6 {[%clk 0:02:00.6]} 17. b5
{[%clk 0:01:44.9]} 17... Bxd4 {[%clk 0:01:26.4]} 18. bxa6 {[%clk 0:01:31.4]}
18... Bxa6 {[%clk 0:01:28.3]} 19. cxd4 {[%clk 0:01:32.4]} 19... Bxc4 {[%clk
0:01:29.9]} 20. Rhc1 {[%clk 0:01:21.5]} 20... Bd5 {[%clk 0:01:26.8]} 21. Bxd5
{[%clk 0:01:20.7]} 21... cxd5+ {[%clk 0:01:28.7]} 22. Kd2 {[%clk 0:01:21.5]}
22... Rc4 {[%clk 0:01:28.9]} 23. Rxc4 {[%clk 0:01:19.9]} 23... dxc4 {[%clk
0:01:30.8]} 24. Kc3 {[%clk 0:01:20.8]} 24... b5 {[%clk 0:01:29]} 25. a4 {[%clk
0:01:21.3]} 25... Rb8 {[%clk 0:01:18.4]} 26. axb5 {[%clk 0:01:21.7]} 26... Rxb5
{[%clk 0:01:19]} 27. Rxa7 {[%clk 0:01:21.9]} 1-0

[Event "*** Titled Tuesday Blitz"]
[Site "Chess.com"]
[Date "2019.01.01"]
[Round "4"]
[White "maziarbagheri"]
[Black "Qingdom"]
[Result "1-0"]
[WhiteElo "2360"]
[BlackElo "2157"]
[TimeControl "180+2"]
[EndTime "13:52:09 PST"]
[Termination "maziarbagheri won by resignation"]

1. d4 {[%clk 0:02:37.5]} 1... Nf6 {[%clk 0:03:00.4]} 2. c4 {[%clk 0:02:37.9]}
2... c5 {[%clk 0:03:01.3]} 3. d5 {[%clk 0:02:38.2]} 3... e6 {[%clk 0:03:02.7]}
4. Nc3 {[%clk 0:02:38.3]} 4... exd5 {[%clk 0:03:03.9]} 5. cxd5 {[%clk
0:02:39.7]} 5... d6 {[%clk 0:03:05.4]} 6. e4 {[%clk 0:02:41]} 6... g6 {[%clk
0:03:06.7]} 7. Bb5+ {[%clk 0:02:38.8]} 7... Nbd7 {[%clk 0:03:06.7]} 8. e5 {[%clk
0:02:11.3]} 8... dxe5 {[%clk 0:03:05.8]} 9. d6 {[%clk 0:02:12.7]} 9... a6 {[%clk
0:02:59.9]} 10. Ba4 {[%clk 0:02:12.8]} 10... b5 {[%clk 0:02:57.6]} 11. Bc2
{[%clk 0:02:14]} 11... Bb7 {[%clk 0:02:57.5]} 12. Nf3 {[%clk 0:02:14.3]} 12...
Qb6 {[%clk 0:02:55.6]} 13. O-O {[%clk 0:02:00.9]} 13... Qxd6 {[%clk 0:02:55.5]}
14. Qe2 {[%clk 0:02:01.6]} 14... Bg7 {[%clk 0:02:51.4]} 15. Rd1 {[%clk
0:02:02.9]} 15... Qe7 {[%clk 0:02:52.1]} 16. Bg5 {[%clk 0:02:00.8]} 16... O-O
{[%clk 0:02:48.7]} 17. Nd5 {[%clk 0:02:02.2]} 17... Bxd5 {[%clk 0:02:48.3]} 18.
Rxd5 {[%clk 0:02:04.1]} 18... h6 {[%clk 0:02:43.3]} 19. Bxf6 {[%clk 0:02:02.8]}
19... Bxf6 {[%clk 0:02:37.9]} 20. Rad1 {[%clk 0:02:02.5]} 20... Rad8 {[%clk
0:02:36.7]} 21. h4 {[%clk 0:01:59]} 21... Kg7 {[%clk 0:02:36.1]} 22. h5 {[%clk
0:01:59.6]} 22... Nb6 {[%clk 0:02:32.7]} 23. Rxd8 {[%clk 0:01:56.5]} 23... Rxd8
{[%clk 0:02:33.2]} 24. hxg6 {[%clk 0:01:58]} 24... Rxd1+ {[%clk 0:02:33]} 25.
Qxd1 {[%clk 0:01:58.9]} 25... fxg6 {[%clk 0:02:33.5]} 26. Qd3 {[%clk 0:02:00.2]}
26... Qf7 {[%clk 0:02:33.4]} 27. Qd6 {[%clk 0:01:59.7]} 27... Nc4 {[%clk
0:02:22]} 28. Qxa6 {[%clk 0:01:59.7]} 28... Nxb2 {[%clk 0:02:19.3]} 29. Qxb5
{[%clk 0:01:57.8]} 29... Qxa2 {[%clk 0:02:18.4]} 30. Qb7+ {[%clk 0:01:57.2]}
30... Kf8 {[%clk 0:02:04.7]} 31. Bxg6 {[%clk 0:01:55.2]} 31... Be7 {[%clk
0:02:02.6]} 32. Nxe5 {[%clk 0:01:53.3]} 32... Nc4 {[%clk 0:01:43.3]} 33. Qf3+
{[%clk 0:01:47.6]} 1-0

[Event "*** Titled Tuesday Blitz"]
[Site "Chess.com"]
[Date "2019.01.01"]
[Round "4"]
[White "MFguimaraes"]
[Black "Berardino"]
[Result "0-1"]
[WhiteElo "2318"]
[BlackElo "2417"]
[TimeControl "180+2"]
[EndTime "13:52:10 PST"]
[Termination "Berardino won by checkmate"]

1. e4 {[%clk 0:03:01.9]} 1... c5 {[%clk 0:03:00.6]} 2. Nf3 {[%clk 0:03:02.9]}
2... b6 {[%clk 0:02:58.8]} 3. d3 {[%clk 0:03:03.4]} 3... Bb7 {[%clk 0:02:59.5]}
4. Nbd2 {[%clk 0:03:04.5]} 4... e6 {[%clk 0:03:00.8]} 5. g3 {[%clk 0:03:05.7]}
5... Nf6 {[%clk 0:03:01.7]} 6. Bg2 {[%clk 0:03:07.1]} 6... d5 {[%clk 0:03:02.1]}
7. e5 {[%clk 0:03:07.2]} 7... Nfd7 {[%clk 0:03:02.7]} 8. c4 {[%clk 0:03:05.9]}
8... d4 {[%clk 0:02:52.7]} 9. O-O {[%clk 0:03:05.3]} 9... Qc7 {[%clk 0:02:53.5]}
10. Qe2 {[%clk 0:03:00.9]} 10... Nc6 {[%clk 0:02:54.1]} 11. Re1 {[%clk
0:02:57.1]} 11... Be7 {[%clk 0:02:55.1]} 12. h4 {[%clk 0:02:54.4]} 12... h6
{[%clk 0:02:46]} 13. a3 {[%clk 0:02:48.6]} 13... g5 {[%clk 0:02:43.2]} 14. h5
{[%clk 0:02:46.7]} 14... g4 {[%clk 0:02:41.2]} 15. Nh2 {[%clk 0:02:47.2]} 15...
Ncxe5 {[%clk 0:02:39.8]} 16. Nxg4 {[%clk 0:02:41.3]} 16... Bxg2 {[%clk 0:02:32]}
17. Kxg2 {[%clk 0:02:42]} 17... Qc6+ {[%clk 0:02:15.7]} 18. Kh2 {[%clk 0:02:42]}
18... Nxg4+ {[%clk 0:01:59.7]} 19. Qxg4 {[%clk 0:02:43.9]} 19... O-O-O {[%clk
0:02:00]} 20. Qe4 {[%clk 0:02:42.6]} 20... Qxe4 {[%clk 0:01:53.5]} 21. Nxe4
{[%clk 0:02:40.9]} 21... Ne5 {[%clk 0:01:51]} 22. Rd1 {[%clk 0:02:33.3]} 22...
f5 {[%clk 0:01:50.6]} 23. Nd2 {[%clk 0:02:27.6]} 23... Nxd3 {[%clk 0:01:50.4]}
24. Kg2 {[%clk 0:02:28.5]} 24... e5 {[%clk 0:01:45.4]} 25. f3 {[%clk 0:02:18.6]}
25... Rdg8 {[%clk 0:01:14.3]} 26. b4 {[%clk 0:02:19.1]} 26... Bg5 {[%clk
0:01:13.8]} 27. bxc5 {[%clk 0:02:17.4]} 27... bxc5 {[%clk 0:01:13.5]} 28. Kh2
{[%clk 0:02:18.5]} 28... Be3 {[%clk 0:01:07.2]} 29. a4 {[%clk 0:01:54.8]} 29...
Rg5 {[%clk 0:01:07.4]} 30. Ba3 {[%clk 0:01:51.7]} 30... Rhg8 {[%clk 0:01:04.2]}
31. Nf1 {[%clk 0:01:52.2]} 31... Rxh5+ {[%clk 0:01:03.8]} 32. Kg2 {[%clk
0:01:52]} 32... Nf4# {[%clk 0:01:04.7]} 0-1

[Event "*** Titled Tuesday Blitz"]
[Site "Chess.com"]
[Date "2019.01.01"]
[Round "4"]
[White "KRASAVCHIK2002"]
[Black "Caminator2000"]
[Result "0-1"]
[WhiteElo "2262"]
[BlackElo "2385"]
[TimeControl "180+2"]
[EndTime "13:52:43 PST"]
[Termination "Caminator2000 won by resignation"]

1. Nf3 {[%clk 0:03:00.6]} 1... d5 {[%clk 0:02:57.4]} 2. g3 {[%clk 0:02:58.2]}
2... Nf6 {[%clk 0:02:58.1]} 3. Bg2 {[%clk 0:02:58.9]} 3... c6 {[%clk 0:02:56.5]}
4. O-O {[%clk 0:02:59.8]} 4... Bf5 {[%clk 0:02:57]} 5. b3 {[%clk 0:03:01.1]}
5... Nbd7 {[%clk 0:02:54.9]} 6. Bb2 {[%clk 0:03:02.3]} 6... e6 {[%clk
0:02:56.2]} 7. c4 {[%clk 0:03:03]} 7... Bd6 {[%clk 0:02:52.4]} 8. d3 {[%clk
0:03:03.4]} 8... O-O {[%clk 0:02:53.3]} 9. Nbd2 {[%clk 0:03:04.4]} 9... h6
{[%clk 0:02:54.3]} 10. Qc2 {[%clk 0:02:35.9]} 10... Bh7 {[%clk 0:02:48.3]} 11.
Rad1 {[%clk 0:02:32.3]} 11... Qe7 {[%clk 0:02:45.7]} 12. Rfe1 {[%clk 0:02:29.8]}
12... e5 {[%clk 0:02:41.5]} 13. e4 {[%clk 0:02:30.4]} 13... dxe4 {[%clk
0:02:41.2]} 14. dxe4 {[%clk 0:02:32.3]} 14... Ba3 {[%clk 0:02:39.1]} 15. Bxa3
{[%clk 0:02:01.7]} 15... Qxa3 {[%clk 0:02:38.6]} 16. Qc3 {[%clk 0:02:02.7]}
16... Rad8 {[%clk 0:02:30.4]} 17. Nh4 {[%clk 0:01:04.2]} 17... Nc5 {[%clk
0:02:20.9]} 18. Nb1 {[%clk 0:01:00.8]} 18... Qxa2 {[%clk 0:02:12]} 19. Rxd8
{[%clk 0:00:58.5]} 19... Rxd8 {[%clk 0:02:11.6]} 20. b4 {[%clk 0:00:38.5]} 20...
Nd3 {[%clk 0:01:58.3]} 21. Rf1 {[%clk 0:00:39.2]} 21... Nxf2 {[%clk 0:01:42.7]}
22. Qxe5 {[%clk 0:00:29.6]} 22... N6g4 {[%clk 0:01:41.9]} 23. Qc7 {[%clk
0:00:26.2]} 23... Nh3+ {[%clk 0:01:41.4]} 24. Kh1 {[%clk 0:00:21.1]} 24... Ngf2+
{[%clk 0:01:34.8]} 25. Rxf2 {[%clk 0:00:21.7]} 25... Nxf2+ {[%clk 0:01:36.3]}
26. Kg1 {[%clk 0:00:22.2]} 26... Rd1+ {[%clk 0:01:37.8]} 27. Bf1 {[%clk
0:00:20.9]} 27... Nh3+ {[%clk 0:01:39.3]} 0-1

[Event "*** Titled Tuesday Blitz"]
[Site "Chess.com"]
[Date "2019.01.01"]
[Round "4"]
[White "vladimirdamjanovic"]
[Black "BogdanDeac"]
[Result "0-1"]
[WhiteElo "2604"]
[BlackElo "2750"]
[TimeControl "180+2"]
[EndTime "13:52:57 PST"]
[Termination "BogdanDeac won on time"]

1. d4 {[%clk 0:03:01.9]} 1... Nf6 {[%clk 0:03:00.4]} 2. Nf3 {[%clk 0:03:01.4]}
2... d5 {[%clk 0:03:00.9]} 3. c4 {[%clk 0:03:01.3]} 3... e6 {[%clk 0:03:01.2]}
4. Nc3 {[%clk 0:03:01.5]} 4... Bb4 {[%clk 0:03:01.9]} 5. Qa4+ {[%clk 0:02:59.9]}
5... Nc6 {[%clk 0:03:01.9]} 6. Bg5 {[%clk 0:03:00.9]} 6... h6 {[%clk 0:03:02]}
7. Bxf6 {[%clk 0:02:53.1]} 7... Qxf6 {[%clk 0:03:03.9]} 8. e3 {[%clk 0:02:50.1]}
8... O-O {[%clk 0:03:04.6]} 9. Be2 {[%clk 0:02:43.2]} 9... Rd8 {[%clk
0:03:05.2]} 10. O-O {[%clk 0:02:43.5]} 10... Bf8 {[%clk 0:03:05.2]} 11. cxd5
{[%clk 0:02:26.4]} 11... exd5 {[%clk 0:03:05.5]} 12. a3 {[%clk 0:02:24.9]} 12...
Ne7 {[%clk 0:03:05.5]} 13. Ne5 {[%clk 0:02:24.9]} 13... c6 {[%clk 0:03:04.3]}
14. f4 {[%clk 0:02:22.3]} 14... Nf5 {[%clk 0:03:05]} 15. Rf3 {[%clk 0:02:16.6]}
15... Nh4 {[%clk 0:03:03.6]} 16. Rf2 {[%clk 0:02:04.6]} 16... Qe7 {[%clk
0:02:58.2]} 17. g3 {[%clk 0:01:51.8]} 17... Nf5 {[%clk 0:02:58.1]} 18. Rf3
{[%clk 0:01:27.5]} 18... Qe8 {[%clk 0:02:55.3]} 19. g4 {[%clk 0:01:12.1]} 19...
Nh4 {[%clk 0:02:51.2]} 20. Rh3 {[%clk 0:01:11.4]} 20... Be7 {[%clk 0:02:51.2]}
21. Rf1 {[%clk 0:00:47.6]} 21... f6 {[%clk 0:02:50.2]} 22. Nxc6 {[%clk
0:00:30.9]} 22... bxc6 {[%clk 0:02:50.1]} 23. Rxh4 {[%clk 0:00:32.3]} 23... f5
{[%clk 0:02:51.1]} 24. Rh3 {[%clk 0:00:33.5]} 24... fxg4 {[%clk 0:02:51.6]} 25.
Rg3 {[%clk 0:00:34.9]} 25... Bh4 {[%clk 0:02:52.3]} 26. Kf2 {[%clk 0:00:15.6]}
26... Qe6 {[%clk 0:02:44.3]} 27. e4 {[%clk 0:00:12.9]} 27... Rb8 {[%clk
0:02:30.4]} 28. Qc2 {[%clk 0:00:07.8]} 28... dxe4 {[%clk 0:02:28.3]} 29. Nxe4
{[%clk 0:00:09.2]} 29... Rxd4 {[%clk 0:02:26.5]} 30. Nd2 {[%clk 0:00:06.3]}
30... Rxf4+ {[%clk 0:02:20.2]} 31. Ke1 {[%clk 0:00:05.1]} 31... Bxg3+ {[%clk
0:02:13]} 32. hxg3 {[%clk 0:00:05.9]} 32... Ba6 {[%clk 0:02:13.5]} 0-1